[Event "New York Spring IM-C 2022"]
[Site "New York"]
[Date "2022.04.16"]
[Round "4.3"]
[White "Singh, Hersh"]
[Black "Antova, Gabriela"]
[Result "1/2-1/2"]
[ECO "A07"]
[WhiteElo "2084"]
[BlackElo "2304"]
[Annotator "TA"]
[PlyCount "125"]
[EventDate "2022.04.14"]
[EventType "tourn"]
[EventCountry "USA"]
[SourceTitle "playchess.com"]
[Source "ChessBase"]
[SourceQuality "1"]
[TimeControl "5400+30"]

{[%evp 9,125,15,14,6,18,14,16,15,26,14,47,39,40,37,45,44,50,43,46,15,12,17,11,16,17,10,16,18,25,-23,-23,-22,-19,-14,-22,-64,-68,-72,-77,-90,-85,-97,-85,-87,-81,-81,-62,-141,-102,-101,-98,-132,-34,-41,-40,-34,-35,-51,-23,-30,-23,-85,-81,-104,-22,-36,-27,-20,-20,-33,-26,-22,0,-33,-22,-29,-14,-14,-14,-14,0,-14,-14,-14,-2,-2,-2,-2,-1,-1,-1,-1,-1,-1,-1,-1,-1,-1,-1,-16,-16,-16,-16,-16,-16,-16,-16,-23,-23,-23,-23,-23,-15,-15,-15,-15,-15,-15]} 1. Nf3 {[%emt 0:00:01]} d5 {[%emt 0:00:34]} 2. g3 {[%emt 0:00:06]} Bg4 {[%emt 0:06:38]} 3. Bg2 {[%emt 0:00:06]} Nd7 {[%emt 0:01:02]} 4. d4 {[%emt 0:04:48]} e6 {[%emt 0:02:58]} 5. h3 {[%emt 0:00:39]} Bh5 {[%emt 0:00:50]} 6. O-O {[%emt 0:00:55][%cal Oc2c4] A07: Réti Opening: New York and Capablanca Systems.} Ngf6 {[%emt 0:01:38]} 7. c4 {[%emt 0:00:18]} c6 {[%emt 0:02:40]} 8. cxd5 {[%emt 0:01:43]} exd5 {[%emt 0:00:42]} 9. Nh4 {[%emt 0:01:49] Recently 9.Ne5 got a lot of attention.} Ne4 {[%emt 0:13:59]} 10. Nc3 {[%emt 0:06:42]} Nd6 {[%emt 0:17:08]} 11. Bf4 {[%emt 0:07:20]} Be7 {[%emt 0:06:50]} 12. Bxd6 {[%emt 0:07:44]} Bxd6 {[%emt 0:00:05]} 13. Nf5 {[%emt 0:00:18]} Qf6 {[%emt 0:02:39]} 14. g4 {[%emt 0:05:33] [#] e4 is the strong threat.} Bg6 {[%emt 0:03:47]} 15. e4 {[%emt 0:00:51][%cal Og4g5]} Bxf5 {[%emt 0:01:15]} 16. e5 {[%emt 0:08:49] [#]} Nxe5 $146 {[%emt 0:06:02]} ({Predecessor:} 16... Qh4 17. exd6 Be6 18. f4 Nb6 19. f5 Bd7 20. Na4 O-O 21. Nc5 Bc8 22. b3 Qf6 {1-0 (41) Blomqvist,E (2548)-Wallace,J (2404) Fagernes 2017}) 17. dxe5 {[%emt 0:00:03]} Bxe5 {[%emt 0:00:58]} ({Resist} 17... Qxe5 18. Re1 Be4 19. Nxe4 Qh2+ 20. Kf1 dxe4 21. Rxe4+ Kf8 22. Qb3 $16) 18. gxf5 {[%emt 0:00:18]} Qxf5 {[%emt 0:01:48]} 19. Nxd5 {[%emt 0:15:19]} cxd5 $11 {[%emt 0:03:12]} 20. Qxd5 {[%emt 0:00:07] [#] Strongly threatening Rfe1.} Rd8 $1 $40 {[%emt 0:03:30][%mdl 128] Black has some attack.} 21. Qb5+ {[%emt 0:00:26]} Kf8 {[%emt 0:00:38][%cal Oe5h2] White must now prevent ...Bh2+!} 22. Qxb7 {[%emt 0:07:48]} g6 {[%emt 0:03:21]} 23. Rad1 {[%emt 0:07:05]} Kg7 {[%emt 0:03:43]} 24. b3 {[%emt 0:01:02]} Qf4 {[%emt 0:04:06][%csl Ge5][%cal Rf4h2]} 25. Rfe1 {[%emt 0:00:02]} Bc3 {[%emt 0:01:18]} 26. Rf1 {[%emt 0:00:24]} Rhe8 {[%emt 0:06:01] Threatens to win with ...Be5.} 27. Qf3 {[%emt 0:00:03]} Qe5 {[%emt 0:02:36]} 28. Qc6 {[%emt 0:05:01]} ({Better is} 28. Rxd8 $15 Rxd8 29. Rd1) 28... Bd4 {[%emt 0:01:27][%cal Od4f2]} 29. Qf3 {[%emt 0:01:39]} Rd6 {[%emt 0:00:59]} 30. Rd2 {[%emt 0:01:28]} Rf6 {[%emt 0:01:08]} (30... Ree6 $17 31. Kh1 Qa5) 31. Qd5 $15 {[%emt 0:00:26]} Qxd5 {[%emt 0:01:02]} 32. Bxd5 {[%emt 0:00:03]} Bb6 {[%emt 0:00:20]} 33. Bg2 {[%emt 0:01:01]} Re5 {[%emt 0:00:23]} 34. Rc1 {[%emt 0:01:00]} h5 {[%emt 0:00:50]} 35. a4 {[%emt 0:00:05]} (35. Rcc2 $11 {remains equal.}) 35... a5 $17 {[%emt 0:00:20]} 36. Kf1 {[%emt 0:02:35]} Ref5 {[%emt 0:01:07]} (36... Re3 $1 $17 37. Bd5 Rxh3) 37. Rcc2 $11 {[%emt 0:00:04]} g5 {[%emt 0:00:22]} 38. Be4 {[%emt 0:01:06]} Rf4 {[%emt 0:00:14]} 39. Bd5 {[%emt 0:00:54]} Be3 {[%emt 0:01:06]} 40. Re2 {[%emt 0:00:03]} Bb6 {[%emt 0:00:14]} 41. Red2 {[%emt 0:00:22]} R6f5 {[%emt 0:00:24][%cal Ob6f2]} 42. Bb7 {[%emt 0:00:21]} Rb4 {[%emt 0:00:42]} 43. Rd5 {[%emt 0:00:35]} Rxd5 {[%emt 0:00:41]} 44. Bxd5 {[%emt 0:00:02][%mdl 4096] Endgame KRB-KRB} Rd4 {[%emt 0:00:28]} 45. Bc4 {[%emt 0:00:56]} Rf4 {[%emt 0:00:35]} 46. Kg2 {[%emt 0:00:02]} Bd4 {[%emt 0:00:23]} 47. Re2 {[%emt 0:00:07]} Kf6 {[%emt 0:00:23]} 48. f3 {[%emt 0:01:21]} Bc5 {[%emt 0:00:37]} 49. Rd2 {[%emt 0:00:17]} Rd4 {[%emt 0:00:12]} 50. Rxd4 {[%emt 0:01:21]} Bxd4 {[%emt 0:00:01] KB-KB} 51. f4 {[%emt 0:00:01]} gxf4 {[%emt 0:00:30]} 52. Kf3 {[%emt 0:00:02]} Be3 {[%emt 0:00:24]} 53. Bd5 {[%emt 0:00:07]} Kg6 {[%emt 0:00:25]} 54. Be4+ {[%emt 0:00:23]} Kg5 {[%emt 0:00:13]} 55. Bd3 {[%emt 0:00:10]} Bc1 {[%emt 0:00:29]} 56. Bc4 {[%emt 0:00:02]} f6 {[%emt 0:00:25]} 57. Bd3 {[%emt 0:00:15]} Kh4 {[%emt 0:00:26]} 58. Bf1 {[%emt 0:00:10]} Bd2 {[%emt 0:00:10]} 59. Bg2 {[%emt 0:00:01]} Kg5 {[%emt 0:00:10]} 60. Bf1 {[%emt 0:00:02]} Kf5 {[%emt 0:00:41]} 61. Bd3+ {[%emt 0:00:02] The position is equal.} Ke5 {[%emt 0:00:21]} 62. Bg6 {[%emt 0:00:07]} h4 {[%emt 0:00:03]} 63. Bf7 {[%emt 0:00:06] Weighted Error Value: White=0.09 (flawless) /Black=0.11 (very precise)} 1/2-1/2

[Event "New York Spring IM-C 2022"]
[Site "New York"]
[Date "2022.04.16"]
[Round "4.4"]
[White "Berczes, David"]
[Black "Dolgitser, Konstantin"]
[Result "1/2-1/2"]
[ECO "D11"]
[WhiteElo "2452"]
[BlackElo "2199"]
[Annotator "TA"]
[PlyCount "56"]
[EventDate "2022.04.14"]
[EventType "tourn"]
[EventCountry "USA"]
[SourceTitle "playchess.com"]
[Source "ChessBase"]
[SourceQuality "1"]
[TimeControl "5400+30"]

{[%evp 9,56,9,11,9,8,10,10,13,12,-3,-3,0,0,-6,0,0,0,-10,0,-13,0,0,0,0,0,0,0,-117,-117,-214,-231,-262,-118,-112,5,-170,-163,-152,-108,-109,-80,-83,-91,-97,0,-42,0,-89,0]} 1. d4 {[%emt 0:15:48]} d5 {[%emt 0:00:10]} 2. c4 {[%emt 0:01:01]} c6 {[%emt 0:00:19]} 3. Nf3 {[%emt 0:00:33]} Nf6 {[%emt 0:00:16]} 4. g3 {[%emt 0:02:06]} Bf5 {[%emt 0:02:28]} 5. Nc3 {[%emt 0:05:46]} e6 {[%emt 0:01:18]} 6. Nh4 {[%emt 0:01:40] D11: Slav Defence: 3 Nf3 sidelines and 3...Nf6 4 e3 Bg4.} dxc4 {[%emt 0:04:29]} 7. Nxf5 {[%emt 0:05:37]} exf5 {[%emt 0:00:13]} 8. e3 {[%emt 0:02:11] The position is equal.} Nbd7 {[%emt 0:03:55]} 9. Qc2 {[%emt 0:02:19]} g6 $1 {[%emt 0:01:51]} 10. Bxc4 {[%emt 0:00:05] And now Qb3 would win.} Nb6 {[%emt 0:00:07]} 11. Bb3 {[%emt 0:15:23] [#]} Bg7 $146 {[%emt 0:18:40]} ({Predecessor:} 11... h5 12. Bd2 a5 13. O-O-O Bg7 14. f3 O-O 15. h3 a4 16. Nxa4 Nxa4 17. g4 b5 18. gxf5 {0-1 (38) Gasic Merino,F (2204)-Salinas Herrera,P (2513) Arica 2021}) 12. O-O {[%emt 0:09:35]} O-O {[%emt 0:01:29]} 13. f3 {[%emt 0:02:32]} Qe7 {[%emt 0:20:06]} 14. e4 {[%emt 0:21:49]} fxe4 {[%emt 0:11:11]} 15. fxe4 {[%emt 0:00:04]} c5 {[%emt 0:00:12][%cal Bc6c5,Bc5d4,Bd4d3][%mdl 32]} 16. e5 {[%emt 0:00:40] aiming for Bg5.} Nfd7 {[%emt 0:00:24]} 17. Ne4 {[%emt 0:03:54]} cxd4 {[%emt 0:02:22]} 18. Ng5 {[%emt 0:06:26]} (18. Bg5 $11 {remains equal.} Qxe5 19. Rae1) 18... Nxe5 $17 {[%emt 0:01:42] White must now prevent ...d3.} 19. Bf4 {[%emt 0:01:57]} (19. Qe4 $17 Qd7 20. Bd2 (20. Qh4 $2 h5 $19)) 19... d3 $1 $19 {[%emt 0:01:49]} 20. Qd2 {[%emt 0:00:33]} h6 {[%emt 0:01:57]} (20... Nbc4 $1 $19 {[%cal Rc4d2]} 21. Qg2 Rae8) 21. Bxe5 $17 {[%emt 0:00:11]} Qxg5 {[%emt 0:00:53]} ({Don't do} 21... Bxe5 22. Nxf7 Bg7 23. Qxd3 $16) (21... Qxe5 $17 22. Nxf7 Qd4+ 23. Kh1 Nc4) 22. Bf4 $2 {[%emt 0:00:30]} (22. Qxg5 $11 {and White stays safe.} hxg5 23. Bd6) 22... Qc5+ $19 {[%emt 0:02:42]} 23. Kg2 {[%emt 0:00:12]} Qc6+ {[%emt 0:01:55]} 24. Rf3 {[%emt 0:00:33]} g5 {[%emt 0:03:19]} 25. Rc1 {[%emt 0:00:03]} Qe4 {[%emt 0:00:39] Strongly threatening ...g4.} 26. Re1 {[%emt 0:00:20]} Qc6 {[%emt 0:03:07]} ({Black should try} 26... Qg6 $1 $17 27. Be5 Rad8 28. Bxg7 Kxg7) 27. Rc1 $15 {[%emt 0:00:03]} Qe4 {[%emt 0:03:02]} (27... Qg6 $15 {feels stronger.} 28. Bc7 Rac8 29. Qxd3 Qxd3 30. Rxd3 Be5 $1 {[%mdl 512]} 31. Bxe5 Rxc1) 28. Re1 $1 $17 {[%emt 0:01:01] [#]} Qd4 {[%emt 0:01:30] Weighted Error Value: White=0.24 (precise) /Black=0.21 (precise)} (28... Qg6 $1 $17 29. Be5 Rad8 30. Bxg7 Kxg7) 1/2-1/2

[Event "New York Spring IM-C 2022"]
[Site "New York"]
[Date "2022.04.16"]
[Round "4.5"]
[White "Rozman, Levy"]
[Black "Chasin, Nico"]
[Result "1/2-1/2"]
[ECO "A45"]
[WhiteElo "2334"]
[BlackElo "2270"]
[Annotator "TA"]
[PlyCount "102"]
[EventDate "2022.04.14"]
[EventType "tourn"]
[EventCountry "USA"]
[SourceTitle "playchess.com"]
[Source "ChessBase"]
[SourceQuality "1"]
[TimeControl "5400+30"]

{[%evp 9,102,-5,12,0,5,9,14,0,0,0,0,-3,25,25,30,3,0,0,0,0,0,0,0,0,0,0,3,-16,-11,-4,0,0,0,0,0,0,0,0,0,11,12,0,0,0,0,0,0,0,0,0,0,0,0,0,0,0,0,0,0,0,0,0,0,-29,0,0,0,0,0,0,0,0,0,0,0,0,0,0,0,0,0,0,0,0,0,0,0,0,0,0,1646,0,0,0,1040]} 1. d4 {[%emt 0:03:58]} Nf6 {[%emt 0:00:32]} 2. Bf4 {[%emt 0:00:26]} g6 {[%emt 0:00:46]} 3. Nc3 {[%emt 0:02:34]} d5 {[%emt 0:00:07]} 4. Nb5 {[%emt 0:00:57]} Na6 {[%emt 0:00:08][%cal Bb8a6,Ba6c7,Bc7e6][%mdl 32]} 5. e3 {[%emt 0:00:20]} c6 {[%emt 0:01:04]} 6. Nc3 {[%emt 0:00:13] A45: Trompowsky Attack.} Nc7 {[%emt 0:00:08]} 7. h3 {[%emt 0:04:37]} Bg7 {[%emt 0:00:41]} 8. Nf3 {[%emt 0:01:35]} O-O {[%emt 0:07:02]} 9. Bd3 {[%emt 0:03:26]} Ne6 {[%emt 0:02:15]} 10. Be5 {[%emt 0:03:01]} Nd7 {[%emt 0:03:44]} 11. Bxg7 {[%emt 0:08:15] [#]} Nxg7 $146 {[%emt 0:00:12]} ({Predecessor:} 11... Kxg7 12. Qd2 Nf6 13. g4 h6 14. O-O-O b5 15. Ne2 c5 16. dxc5 Nxc5 17. Rhg1 Qb6 {½-½ (30) Moroni,L (2530)-Seresin,F (2371) Forni di Sopra 2020}) 12. e4 {[%emt 0:05:21]} dxe4 {[%emt 0:06:24]} 13. Nxe4 {[%emt 0:00:19]} e5 {[%emt 0:01:13]} 14. dxe5 {[%emt 0:02:17]} Nxe5 {[%emt 0:02:23]} 15. Nxe5 {[%emt 0:00:11] [#] aiming for 0-0.} Qa5+ {[%emt 0:00:05]} 16. Qd2 {[%emt 0:00:05]} Qxe5 {[%emt 0:00:21]} 17. O-O-O {[%emt 0:00:26]} Bf5 {[%emt 0:04:08]} 18. f4 {[%emt 0:07:13]} Qe6 {[%emt 0:00:45]} 19. Nc3 {[%emt 0:05:02]} Rad8 {[%emt 0:08:44]} 20. Rhe1 {[%emt 0:02:01]} Qf6 {[%emt 0:00:29]} 21. Ne4 {[%emt 0:03:48]} Bxe4 {[%emt 0:01:31]} 22. Rxe4 {[%emt 0:00:06]} Ne6 {[%emt 0:01:53]} 23. Qe3 {[%emt 0:00:44] Prevents Nc5.} b6 {[%emt 0:00:45]} 24. g4 {[%emt 0:04:25]} Nc5 {[%emt 0:05:17]} 25. Re5 {[%emt 0:03:22]} (25. g5 {with more complications.} Qd6 26. Re5 Qd4 27. Be2) 25... Nxd3+ {[%emt 0:00:45]} 26. Rxd3 {[%emt 0:03:22]} Rxd3 {[%emt 0:00:10]} 27. cxd3 $11 {[%emt 0:00:06][%mdl 4096] Endgame KQR-KQR} Rd8 {[%emt 0:01:38]} 28. g5 {[%emt 0:06:07]} Qd6 {[%emt 0:00:47]} 29. h4 {[%emt 0:00:38]} Qd4 {[%emt 0:10:02]} (29... Qxd3 $2 30. Re8+ Rxe8 31. Qxd3 $18) 30. Kc2 {[%emt 0:09:13]} Qxe3 {[%emt 0:03:13]} 31. Rxe3 {[%emt 0:00:06] KR-KR} Kf8 {[%emt 0:00:19]} 32. Kc3 {[%emt 0:01:25]} c5 {[%emt 0:04:57]} 33. a4 {[%emt 0:02:38]} Rd6 {[%emt 0:03:00]} 34. Re4 {[%emt 0:03:26]} f5 {[%emt 0:00:54]} 35. gxf6 {[%emt 0:06:37]} Rxf6 {[%emt 0:00:02]} 36. Kc4 {[%emt 0:02:12]} Rd6 {[%emt 0:01:21]} 37. d4 {[%emt 0:03:47]} cxd4 {[%emt 0:00:02]} 38. Rxd4 {[%emt 0:00:05]} Rc6+ {[%emt 0:00:17]} 39. Kd5 {[%emt 0:01:47]} Rc2 {[%emt 0:01:31]} 40. Ke6 {[%emt 0:02:30]} Rc6+ {[%emt 0:00:51]} 41. Kd5 {[%emt 0:01:21]} Rc2 {[%emt 0:00:06]} 42. b4 {[%emt 0:00:38]} Ke7 {[%emt 0:04:35]} 43. Rc4 {[%emt 0:00:43]} Rd2+ {[%emt 0:00:01]} 44. Kc6 {[%emt 0:00:30] [#] Hoping for Kb7.} Ke6 {[%emt 0:00:00]} 45. Kb7 {[%emt 0:00:35]} Rd7+ {[%emt 0:00:01]} 46. Rc7 {[%emt 0:00:28] And now Rxd7 would win.} Rd4 {[%emt 0:00:01][%csl LRb4,LRf4]} 47. a5 {[%emt 0:00:32]} bxa5 {[%emt 0:00:59]} ({Don't do} 47... Rxb4 48. a6 Rxf4 49. Kxa7 Rxh4 50. Kxb6 $16) 48. bxa5 {[%emt 0:00:12]} h5 {[%emt 0:00:01]} 49. Rc6+ {[%emt 0:00:47]} Kf7 $2 {[%emt 0:00:47][%mdl 8192]} (49... Kf5 $11) 50. Rc7+ $2 {[%emt 0:00:29]} (50. Kxa7 $18 Rxf4 51. a6 Rxh4 52. Kb7 Rb4+ 53. Rb6) 50... Kf6 {[%emt 0:00:13]} 51. Rc6+ $2 {[%emt 0:00:30][%mdl 8192]} (51. Kxa7 $11 Rxf4 52. Rc6+ Kf5 53. Rc5+ Kf6 54. Kb6 Rxh4 55. Rc6+ Kg5 56. Kb5) 51... Kf7 {[%emt 0:01:01][%mdl 32768] Weighted Error Value: White=0.11 (very precise) /Black=0.02 (flawless) . An unexpected result.} 1/2-1/2

[Event "New York Spring IM-C 2022"]
[Site "New York"]
[Date "2022.04.17"]
[Round "5.1"]
[White "Chasin, Nico"]
[Black "Lee, Justin"]
[Result "1-0"]
[ECO "D66"]
[WhiteElo "2270"]
[BlackElo "2104"]
[Annotator "TA"]
[PlyCount "117"]
[EventDate "2022.04.14"]
[EventType "tourn"]
[EventCountry "USA"]
[SourceTitle "playchess.com"]
[Source "ChessBase"]
[SourceQuality "1"]
[TimeControl "5400+30"]

{[%evp 29,117,11,14,5,16,10,153,96,91,100,100,96,120,102,101,100,121,91,91,83,156,168,202,111,149,110,125,116,107,95,162,77,321,282,320,317,690,358,400,473,429,421,572,608,606,589,633,632,629,583,520,431,839,834,852,835,29995,1420,6303,1854,1615,972,932,940,1232,1173,29963,29967,29963,12393,29969,29971,29966,29964,29976,29977,29983,29981,29982,29983,29983,29984,29983,29984,29983,29984,29987,29986,29982,29977]} 1. d4 {[%emt 0:10:53]} d5 {[%emt 0:00:05]} 2. c4 {[%emt 0:00:06]} c6 {[%emt 0:00:05]} 3. Nf3 {[%emt 0:00:05]} Nf6 {[%emt 0:00:08]} 4. Nc3 {[%emt 0:00:08]} e6 {[%emt 0:00:08]} 5. Bg5 {[%emt 0:00:12]} Be7 {[%emt 0:00:12]} 6. e3 {[%emt 0:00:15]} O-O {[%emt 0:00:25]} 7. Bd3 {[%emt 0:00:20]} Nbd7 {[%emt 0:00:15]} 8. O-O {[%emt 0:00:13]} h6 {[%emt 0:00:13]} 9. Bh4 {[%emt 0:00:34]} dxc4 {[%emt 0:00:16]} 10. Bxc4 {[%emt 0:00:14]} b5 {[%emt 0:00:09]} 11. Bd3 {[%emt 0:00:29]} Bb7 {[%emt 0:00:07]} 12. Rc1 {[%emt 0:06:52]} a6 {[%emt 0:00:55]} 13. a4 {[%emt 0:00:14]} b4 {[%emt 0:04:32]} 14. Bxf6 {[%emt 0:00:43]} Bxf6 {[%emt 0:05:31]} 15. Ne4 {[%emt 0:00:08]} Be7 {[%emt 0:01:22]} 16. Qe2 {[%emt 0:01:53] D66: Queen's Gambit Declined: Classical: Main Line (7 Rc1 c6 8 Bd3).} Qa5 {[%emt 0:18:16]} 17. Nfd2 {[%emt 0:01:41]} e5 {[%emt 0:10:55] [#]} (17... c5 $11 {keeps the balance.}) 18. Qh5 {[%emt 0:00:49]} (18. Ng3 $142 $1 {[%cal Rg3f5]}) 18... Qc7 $16 {[%emt 0:03:36] [#]} 19. Nf3 $146 {[%emt 0:05:16][%cal Rd4e5] Pair of Knights!} ({Predecessor:} 19. Qf5 g6 20. Qh3 Kg7 21. Nb3 Rad8 22. Qg3 Qb8 23. Rfd1 f5 24. Nec5 Nxc5 25. Nxc5 Bxc5 26. dxc5 {½-½ (76) Dominguez Bujeda,J (2075)-Delgado Crespo,M (2300) Spain 2006}) 19... Rad8 {[%emt 0:08:42]} 20. dxe5 {[%emt 0:06:33] Threatens to win with Ng3. &Bianco is much more active.} c5 {[%emt 0:17:29]} 21. Qf5 {[%emt 0:02:52][%cal Oe4c5] And now Nxc5! would win.} g6 {[%emt 0:03:27]} 22. Qf4 {[%emt 0:00:02]} Kg7 {[%emt 0:00:20]} 23. Rfd1 {[%emt 0:01:18]} Nb6 {[%emt 0:01:29]} 24. b3 $36 {[%emt 0:05:22][%cal Of3d4][%mdl 2048] Black is under strong pressure.} c4 {[%emt 0:05:26]} (24... Nd5 $142 25. Qg4 Qb6) 25. Nd4 {[%emt 0:01:47]} ({Inferior is} 25. bxc4 Nxa4 26. Nf6 Bxf3 27. gxf3 Nb2 $11) 25... c3 {[%emt 0:05:10]} 26. Qg3 {[%emt 0:01:53]} ({Better is} 26. Nf6 $18 {[%cal Od3g6] Hoping for Bxg6!} Rxd4 27. Qxd4 (27. exd4 Nd5 $16)) 26... Bc8 {[%emt 0:00:36]} 27. h4 {[%emt 0:01:03]} Rd5 {[%emt 0:00:39]} 28. f4 {[%emt 0:00:28]} h5 {[%emt 0:01:27]} 29. Be2 {[%emt 0:01:52]} Rfd8 {[%emt 0:03:27]} (29... a5 $16) 30. Bf3 {[%emt 0:00:57] Dancing on a razor blade.} (30. Bxh5 $1 $18 {has better winning chances. Strongly threatening Bf3.} Rh8 31. Nf6 Bxf6 32. exf6+ Kxf6 33. Bf3) 30... Ra5 $2 {[%emt 0:01:29] A mistake that costs the game.} (30... Rxd4 $16 31. exd4 (31. Rxd4 Rxd4 32. exd4 Qd8 $16) 31... Be6) 31. Ng5 {[%emt 0:00:23]} Bxg5 {[%emt 0:02:59]} 32. Qxg5 {[%emt 0:00:03][%cal Od4f5] aiming for Nf5+!} ({Less strong is} 32. hxg5 Rc5 $16) 32... Nd5 $2 {[%emt 0:01:24]} (32... Kh7 33. Rf1 Rc5 34. Bxh5 Rg8) 33. e4 {[%emt 0:04:01]} f6 {[%emt 0:05:11]} 34. exf6+ {[%emt 0:00:03]} Nxf6 {[%emt 0:00:05]} 35. e5 {[%emt 0:00:02][%cal Od4e6]} Nh7 {[%emt 0:00:53] [#]} 36. Qxd8 {[%emt 0:00:03][%mdl 512]} Qxd8 {[%emt 0:00:10] [#]} 37. Nf5+ {[%emt 0:00:02][%mdl 576] Discovered Attack} Bxf5 {[%emt 0:00:09]} (37... gxf5 38. Rxd8) 38. Rxd8 {[%emt 0:00:02]} Nf8 {[%emt 0:01:16]} 39. Rd4 {[%emt 0:00:14]} Ne6 {[%emt 0:00:29]} 40. Rxb4 {[%emt 0:00:03]} c2 {[%emt 0:00:30]} (40... Rc5 $142 41. Be2 c2) 41. Be4 $18 {[%emt 0:03:55]} Nxf4 {[%emt 0:00:31]} 42. Rxc2 {[%emt 0:00:03]} Bg4 {[%emt 0:00:29]} 43. Bf3 {[%emt 0:00:26]} (43. Rc7+ $142 Kh6 44. Rb8 Nh3+ 45. gxh3 Bc8 46. Rbxc8 Rxe5 47. Rh8#) 43... Ne6 {[%emt 0:00:30]} 44. Bxg4 {[%emt 0:00:47]} hxg4 {[%emt 0:00:06]} 45. Rxg4 {[%emt 0:00:06]} Rxe5 {[%emt 0:00:04][%mdl 4096] Endgame KRR-KRN} 46. Rc6 {[%emt 0:00:07]} a5 {[%emt 0:00:05]} 47. h5 {[%emt 0:00:08]} g5 {[%emt 0:00:09] [#]} 48. Rxe6 $1 {[%emt 0:00:02]} Rxe6 {[%emt 0:00:06]} 49. Rxg5+ {[%emt 0:00:07] KR-KR} Kh7 {[%emt 0:00:28]} 50. Rxa5 {[%emt 0:00:04] White mates.} Re3 {[%emt 0:00:05]} 51. Rb5 {[%emt 0:00:06]} Kg7 {[%emt 0:00:14]} 52. a5 {[%emt 0:00:01][%cal Ba4a5,Ba5a6][%mdl 32]} Kf7 {[%emt 0:00:08]} 53. a6 {[%emt 0:00:05]} Re1+ {[%emt 0:04:08]} 54. Kh2 {[%emt 0:00:06]} Ra1 {[%emt 0:00:00]} 55. Rb6 {[%emt 0:00:06]} Ra5 {[%emt 0:00:00]} 56. g4 {[%emt 0:00:02]} Kg7 {[%emt 0:00:00]} 57. Kg3 {[%emt 0:00:05]} Rc5 {[%emt 0:00:00]} 58. Kh4 {[%emt 0:00:06]} Rd5 {[%emt 0:00:00]} 59. b4 {[%emt 0:00:04] Weighted Error Value: White=0.30/Black=1.09} 1-0